bitfinex-derivatives/quotes_SOLF0:USTF0_20250929
["timestamp","ask_amount","ask_price","bid_price","bid_amount"]
[1759125119518,2.19210225,209.31,209.2,39.75]
[1759125119815,7.68,209.26,209.2,39.75]
[1759125120612,7.68,209.26,209.2,54.23798833]
[1759125121618,11.9793,209.26,209.2,21.97798833]
[1759125122319,11.9793,209.26,209.2,83.97798833]
[1759125122615,4.2993,209.26,209.2,21.97798833]
[1759125122813,7.68,209.24,209.16,7.49]
[1759125123013,7.68,209.24,209.17,115.8]
[1759125123213,7.68,209.24,209.18,7.49]
[1759125123410,7.68,209.27,209.19,7.49]
[1759125123610,7.68,209.27,209.2,7.49]
[1759125124520,7.68,209.27,209.2,53.13]
[1759125124720,7.68,209.27,209.21,7.49]
[1759125125521,7.68,209.25,209.18,62.0]
[1759125125718,7.68,209.25,209.19,115.8]
[1759125128010,7.68,209.25,209.2,7.49]
[1759125128514,7.68,209.25,209.19,115.8]
[1759125128918,4.2992,209.26,209.2,7.49]
[1759125129421,11.9792,209.26,209.2,123.29]
[1759125129823,7.68,209.26,209.2,123.29]
[1759125132321,7.68,209.26,209.21,7.26]
[1759125132929,7.68,209.26,209.2,115.8]
[1759125133126,7.68,209.26,209.21,7.26]
[1759125133522,7.68,209.26,209.2,115.8]
[1759125133926,7.22,209.29,209.21,7.26]
[1759125134225,7.22,209.35,209.23,7.26]
[1759125134431,4.2978,209.33,209.25,4.2994]
[1759125134729,4.2978,209.33,209.26,50.96]
[1759125135425,11.5178,209.33,209.26,50.96]
[1759125135629,11.5178,209.33,209.26,7.26]
[1759125138232,7.22,209.33,209.26,5.70081994]
[1759125138440,7.22,209.33,209.28,1.40181994]
[1759125138738,7.22,209.33,209.29,7.26]
[1759125139043,7.22,209.33,209.28,1.40181994]
[1759125139633,7.22,209.33,209.29,7.26]
[1759125140538,7.22,209.33,209.28,1.40181994]
[1759125140737,7.22,209.33,209.29,7.26]
[1759125141344,4.2977,209.34,209.29,7.26]
[1759125141546,7.22,209.33,209.29,7.26]
[1759125141742,7.22,209.33,209.28,1.40181994]
[1759125142245,7.22,209.33,209.29,7.26]
[1759125142542,4.2977,209.34,209.29,7.26]
[1759125142740,7.22,209.33,209.29,7.26]
[1759125143143,11.5179,209.33,209.29,7.26]
[1759125143336,7.22,209.32,209.29,7.26]
[1759125143543,7.22,209.32,209.28,1.40181994]
[1759125143745,4.2979,209.33,209.28,117.20181994]
[1759125143944,11.9379,209.33,209.29,7.86]
[1759125144451,11.9379,209.33,209.28,117.20181994]
[1759125144741,4.2973,209.36,209.29,7.86]
[1759125144944,4.2973,209.36,209.3,7.86]
[1759125146143,4.2973,209.36,209.3,9.26181994]
[1759125150647,4.2973,209.36,209.3,7.86]
[1759125150839,4.2975,209.35,209.3,123.64]
[1759125151252,7.64,209.34,209.27,9.26181994]
[1759125151451,7.64,209.34,209.27,7.86]
[1759125151452,4.2979,209.33,209.27,7.86]
[1759125152353,11.9379,209.33,209.27,7.86]
[1759125156049,4.2982,209.31,209.26,115.78]
[1759125156256,1.40181994,209.33,209.23,13.56141994]
[1759125156443,1.40181994,209.33,209.24,115.78]
[1759125156647,7.64,209.32,209.24,115.78]
[1759125157252,1.40181994,209.33,209.24,115.78]
[1759125157558,4.2985,209.3,209.24,115.78]
[1759125157743,11.9385,209.3,209.24,115.78]
[1759125158551,4.298,209.32,209.26,7.86]
[1759125158755,4.298,209.32,209.28,7.86]
[1759125158955,11.938,209.32,209.28,7.86]
[1759125159357,11.938,209.32,209.27,1.40181994]
[1759125159550,4.2976,209.34,209.28,7.86]
[1759125163560,4.2976,209.34,209.28,9.26181994]
[1759125163757,7.64,209.35,209.3,1.40181994]
[1759125163958,7.64,209.35,209.31,7.86]
[1759125164462,7.64,209.35,209.3,1.40181994]
[1759125164659,7.64,209.35,209.31,7.86]
[1759125164853,7.64,209.35,209.3,1.40181994]
[1759125165565,7.64,209.35,209.31,7.86]
[1759125165862,7.64,209.35,209.3,1.40181994]
[1759125166264,7.64,209.35,209.31,7.86]
[1759125166565,7.64,209.35,209.3,1.40181994]
[1759125166755,7.64,209.35,209.31,7.86]
[1759125166954,7.64,209.35,209.3,1.40181994]
[1759125167359,7.64,209.35,209.31,7.86]
[1759125167960,7.64,209.35,209.3,1.40181994]
[1759125168562,7.64,209.35,209.31,7.86]
[1759125168867,7.64,209.35,209.3,1.40181994]
[1759125169063,7.64,209.35,209.31,7.86]
[1759125169466,7.64,209.35,209.3,1.40181994]
[1759125169966,7.64,209.35,209.31,7.86]
[1759125170667,7.64,209.35,209.3,1.40181994]
[1759125171069,7.64,209.35,209.31,7.86]
[1759125171269,7.64,209.35,209.3,1.40181994]
[1759125171667,7.64,209.35,209.31,7.86]
[1759125171866,7.64,209.35,209.3,1.40181994]
[1759125172065,7.64,209.35,209.31,7.86]
[1759125172370,7.64,209.35,209.3,1.40181994]
[1759125172768,7.64,209.35,209.31,7.86]
[1759125173074,4.2972,209.36,209.31,9.26181994]
[1759125173274,7.64,209.35,209.31,9.26181994]
[1759125173470,4.2972,209.36,209.31,9.26181994]
[1759125173669,7.64,209.35,209.31,9.26181994]
[1759125173863,7.71,209.35,209.31,9.26181994]
[1759125174069,4.2972,209.36,209.31,9.26181994]
[1759125174474,7.71,209.35,209.31,9.26181994]
[1759125174773,4.2972,209.36,209.31,9.26181994]
[1759125175176,7.71,209.35,209.31,9.26181994]
[1759125175576,4.2972,209.36,209.31,9.26181994]
[1759125175776,7.71,209.35,209.31,9.26181994]
[1759125175973,4.2972,209.36,209.31,9.26181994]
[1759125176179,5.69851994,209.39,209.31,13.68991994]
[1759125176375,7.71,209.38,209.31,13.68991994]
[1759125177267,7.71,209.38,209.31,100.20991994]
[1759125177673,1.40181994,209.45,209.36,1.40181994]
[1759125178177,1.40181994,209.45,209.34,14.74790501]
[1759125178381,1.40181994,209.45,209.34,35.30790501]
[1759125178577,4.296,209.42,209.34,35.30790501]
[1759125178774,1.40181994,209.43,209.34,7.99]
[1759125178974,1.40181994,209.41,209.32,5.35608507]
[1759125179281,4.2969,209.38,209.31,6.75790501]
[1759125179680,7.71,209.37,209.31,6.75790501]
[1759125180182,7.71,209.37,209.31,5.35608507]
[1759125181884,4.2969,209.38,209.32,7.99]
[1759125182089,12.0069,209.38,209.32,7.99]
[1759125183589,7.71,209.38,209.32,13.34608507]
[1759125183887,7.71,209.38,209.34,7.99]
[1759125184079,13.40801994,209.41,209.34,7.99]
[1759125184283,12.0062,209.41,209.34,7.99]
[1759125184682,12.0062,209.41,209.35,1.40181994]
[1759125184882,12.0062,209.41,209.35,6.75790501]
[1759125185087,12.0062,209.41,209.35,14.74790501]
[1759125185387,12.0062,209.41,209.35,9.39181994]
[1759125186083,7.71,209.41,209.35,9.39181994]
[1759125187488,7.71,209.44,209.37,9.39181994]
[1759125189591,7.71,209.44,209.37,13.68851994]
[1759125189801,7.71,209.44,209.37,5.69851994]
[1759125190096,7.71,209.44,209.38,7.99]
[1759125193395,7.71,209.44,209.38,22.0616692]
[1759125193597,7.71,209.44,209.38,7.99]
[1759125196399,7.71,209.44,209.39,1.40181994]
[1759125196596,7.71,209.44,209.4,7.84]
[1759125196894,7.71,209.44,209.39,1.40181994]
[1759125197096,7.71,209.44,209.4,7.84]
[1759125197292,7.59,209.46,209.4,7.84]
[1759125198397,11.8852,209.46,209.4,7.84]
[1759125199501,7.59,209.44,209.4,7.84]
[1759125199703,4.2954,209.45,209.39,9.24181994]
[1759125200098,4.2954,209.45,209.39,7.84]
[1759125200497,7.59,209.44,209.39,7.84]
[1759125200801,4.2954,209.45,209.39,7.84]
[1759125201001,7.59,209.44,209.39,7.84]
[1759125201202,4.2954,209.45,209.39,7.84]
[1759125201498,7.59,209.44,209.39,7.84]
[1759125201898,7.59,209.44,209.38,14.67391222]
[1759125202205,7.59,209.44,209.38,7.84]
[1759125202806,11.8856,209.44,209.38,7.84]
[1759125205498,11.8856,209.44,209.38,22.37998356]
[1759125205704,11.8856,209.44,209.38,7.84]
[1759125210314,11.8856,209.44,209.38,22.07062221]
[1759125213012,11.8658,209.43,209.38,22.07062221]
[1759125213217,7.57,209.42,209.39,7.35]
[1759125214813,4.2958,209.43,209.39,7.35]
[1759125215209,7.57,209.42,209.39,7.35]
[1759125215714,7.57,209.42,209.38,14.48341801]
[1759125215912,7.57,209.42,209.39,7.35]
[1759125216412,4.2953,209.45,209.39,7.35]
[1759125217015,7.57,209.44,209.39,7.35]
[1759125217415,4.2953,209.45,209.39,7.35]
[1759125217616,7.57,209.44,209.38,7.35]
[1759125218318,7.57,209.44,209.38,21.91433145]
[1759125222219,7.57,209.44,209.38,26.21093145]
[1759125224921,7.57,209.44,209.38,18.86093145]
[1759125225417,7.57,209.44,209.39,7.35]
[1759125226217,7.57,209.46,209.39,7.35]
[1759125227323,7.57,209.46,209.39,12.70608507]
[1759125227523,11.8652,209.46,209.39,12.70608507]
[1759125227721,4.2952,209.46,209.39,12.70608507]
[1759125227916,7.57,209.45,209.39,12.70608507]
[1759125228526,11.8654,209.45,209.39,12.70608507]
[1759125234326,7.28,209.44,209.4,5.35608507]
[1759125234531,4.2954,209.45,209.41,7.95]
[1759125234726,7.28,209.44,209.41,7.95]
[1759125235028,4.2954,209.45,209.41,7.95]
[1759125235229,7.28,209.44,209.41,7.95]
[1759125236128,4.2954,209.45,209.41,7.95]
[1759125236327,7.28,209.44,209.41,7.95]
[1759125241133,11.5754,209.45,209.41,7.95]
[1759125241333,11.5754,209.45,209.4,5.35608507]
[1759125241534,11.5754,209.45,209.41,7.95]
[1759125241738,11.5754,209.45,209.4,5.35608507]
[1759125242045,4.2954,209.45,209.41,7.95]
[1759125242335,4.2954,209.45,209.4,5.35608507]
[1759125242530,4.2954,209.45,209.41,7.95]
[1759125242927,7.28,209.48,209.42,7.95]
[1759125243334,7.28,209.48,209.39,7.95]
[1759125244038,7.28,209.48,209.43,4.01727864]
[1759125244236,74.0967,209.45,209.42,4.635e-05]
[1759125244436,66.8167,209.45,209.35,13.30608507]
[1759125244737,7.28,209.44,209.36,5.35608507]
[1759125245134,7.28,209.44,209.35,13.30608507]
[1759125245728,2.1881721,209.43,209.35,5.35608507]
[1759125245933,69.0214721,209.4,209.33,13.30608507]
[1759125246440,7.28,209.39,209.33,7.95]
[1759125246844,4.2973,209.36,209.33,7.95]
[1759125247042,11.5773,209.36,209.33,7.95]
[1759125248037,7.28,209.36,209.33,7.95]
[1759125250642,4.2969,209.38,209.33,7.95]
[1759125250946,66.8286,209.41,209.31,14.55485165]
[1759125251145,7.28,209.4,209.31,7.95]
[1759125252644,11.6071,209.37,209.31,7.95]
[1759125259850,74.1484,209.38,209.28,7.79]
[1759125260251,4.2981,209.32,209.28,7.79]
[1759125260556,4.2981,209.32,209.26,5.35608507]
[1759125260755,7.31,209.3,209.26,5.35608507]
[1759125260956,7.31,209.29,209.24,5.35608507]
[1759125261259,4.2985,209.3,209.25,7.79]
[1759125261445,11.6085,209.3,209.24,22.34255567]
[1759125261650,7.31,209.3,209.23,5.35608507]
[1759125261849,7.31,209.3,209.12,66.9194]
[1759125261850,7.31,209.27,209.21,5.35608507]
[1759125262152,7.31,209.27,209.19,14.58183493]
[1759125262453,7.31,209.27,209.17,13.14608507]
[1759125262454,1.40309326,209.26,209.18,1.40309326]
[1759125262651,7.31,209.25,209.18,1.40309326]
[1759125263653,4.2998,209.24,209.18,1.40309326]
[1759125264153,7.7,209.22,209.18,9.34309326]
[1759125264354,7.7,209.22,209.18,1.40309326]
[1759125264758,7.7,209.22,209.16,0.83170021]
[1759125264759,7.7,209.22,209.17,7.94]
[1759125265160,7.7,209.22,209.16,16.46175559]
[1759125265654,7.7,209.22,209.17,7.94]
[1759125265854,7.7,209.22,209.16,16.46175559]
[1759125266255,7.7,209.22,209.17,7.94]
[1759125266453,7.7,209.22,209.16,16.46175559]
[1759125266654,7.7,209.22,209.17,7.94]
[1759125267059,7.7,209.22,209.16,16.46175559]
[1759125267256,7.7,209.22,209.17,7.94]
[1759125267649,7.7,209.22,209.16,16.46175559]
[1759125268261,7.7,209.22,209.17,7.94]
[1759125268459,7.7,209.22,209.16,16.46175559]
[1759125269360,7.7,209.22,209.17,7.94]
[1759125269560,7.7,209.22,209.16,16.46175559]
[1759125270261,7.7,209.22,209.17,7.94]
[1759125270463,7.7,209.22,209.16,16.46175559]
[1759125271159,7.7,209.22,209.17,7.94]
[1759125271354,7.7,209.22,209.16,16.46175559]
[1759125271853,7.7,209.22,209.17,7.94]
[1759125272457,7.7,209.22,209.16,16.46175559]
[1759125272658,7.7,209.22,209.17,7.94]
[1759125272860,7.7,209.22,209.16,15.05866233]
[1759125273057,7.7,209.22,209.18,7.94]
[1759125273260,4.2996,209.25,209.18,7.94]
[1759125273459,7.7,209.24,209.18,7.94]
[1759125276560,4.3,209.22,209.18,7.94]
[1759125276757,7.7,209.21,209.18,7.94]
[1759125276961,7.7,209.21,209.16,14.22696212]
[1759125277259,7.7,209.21,209.16,7.94]
[1759125277459,7.7,209.21,209.16,115.88]
[1759125278265,7.7,209.23,209.16,115.88]
[1759125278465,7.7,209.23,209.19,7.94]
[1759125279465,7.7,209.23,209.18,1.40309326]
[1759125279660,7.7,209.23,209.19,7.94]
[1759125279866,7.7,209.23,209.18,1.40309326]
[1759125280162,7.7,209.23,209.17,115.86]
[1759125280363,7.7,209.23,209.18,7.94]
[1759125280560,7.7,209.23,209.17,115.86]
[1759125280960,7.7,209.23,209.18,7.94]
[1759125281565,4.2996,209.24,209.18,115.88]
[1759125281763,11.9996,209.24,209.18,7.94]
[1759125285562,4.2999,209.23,209.17,115.88]
[1759125285968,11.9999,209.23,209.18,7.94]
[1759125286168,7.7,209.22,209.19,7.94]
[1759125286758,7.7,209.22,209.18,115.84]
[1759125286963,7.7,209.22,209.19,7.94]
[1759125287467,4.2999,209.23,209.19,7.94]
[1759125287667,7.7,209.22,209.18,115.84]
[1759125288368,7.7,209.22,209.19,7.94]
[1759125290672,7.7,209.22,209.18,115.84]
[1759125290971,7.7,209.22,209.19,7.94]
[1759125291769,7.7,209.22,209.18,115.84]
[1759125291965,7.7,209.22,209.19,7.94]
[1759125292166,7.7,209.22,209.18,115.84]
[1759125292373,4.2994,209.25,209.19,7.94]
[1759125292574,4.2994,209.25,209.19,123.74]
[1759125295477,4.2994,209.25,209.19,7.94]
[1759125295676,4.2994,209.25,209.19,115.8]
[1759125295976,12.2794,209.25,209.2,7.42]
[1759125296672,12.2794,209.25,209.19,115.8]
[1759125296876,4.2994,209.25,209.19,115.8]
[1759125297177,4.2994,209.25,209.2,7.42]
[1759125297769,4.2994,209.25,209.19,115.8]
[1759125298073,12.2794,209.25,209.19,115.8]
[1759125298276,4.2994,209.25,209.19,115.8]
[1759125298474,4.2994,209.25,209.2,7.42]
[1759125298678,7.98,209.24,209.19,115.8]
[1759125299173,12.2794,209.25,209.19,115.8]
[1759125299374,4.2994,209.25,209.19,115.8]
[1759125299571,7.98,209.24,209.19,115.8]
[1759125300078,7.98,209.24,209.2,7.42]
[1759125300281,7.98,209.24,209.16,25.63134272]
[1759125300575,7.98,209.24,209.18,7.42]
[1759125300971,9.38309326,209.24,209.18,7.42]
[1759125301172,1.40309326,209.21,209.16,14.57106439]
[1759125301475,7.98,209.18,209.16,7.42]
[1759125301679,4.3008,209.19,209.14,58.3]
[1759125301878,7.98,209.18,209.15,7.42]
[1759125303371,7.98,209.18,209.13,5.35608507]
[1759125303577,9.38309326,209.23,209.14,7.42]
[1759125303774,9.38309326,209.23,209.16,7.42]
[1759125303775,7.98,209.23,209.16,7.42]
[1759125304180,9.38309326,209.23,209.16,7.42]
[1759125304380,9.38309326,209.23,209.16,12.77608507]
[1759125305273,9.38309326,209.23,209.17,5.35608507]
[1759125305478,7.98,209.21,209.18,7.42]
[1759125306482,7.98,209.2,209.15,12.77608507]
[1759125306680,1.40309326,209.21,209.15,12.77608507]
[1759125307376,7.98,209.2,209.15,12.77608507]
[1759125307681,1.40309326,209.21,209.16,12.77608507]
[1759125307682,12.2808,209.19,209.16,12.77608507]
[1759125308379,12.2808,209.19,209.17,7.42]
[1759125308979,7.98,209.18,209.16,5.35608507]
[1759125309179,7.98,209.18,209.15,12.77608507]
[1759125309389,7.98,209.18,209.16,7.42]
[1759125310383,7.98,209.21,209.16,7.42]
[1759125310585,7.98,209.21,209.16,5.35608507]
[1759125310985,7.98,209.21,209.17,7.42]
[1759125311186,7.98,209.21,209.16,5.35608507]
[1759125311782,7.98,209.21,209.17,7.42]
[1759125311984,7.98,209.21,209.16,5.35608507]
[1759125312184,7.98,209.2,209.17,7.42]
[1759125312584,7.98,209.2,209.17,7.65]
[1759125313488,7.65,209.2,209.17,7.65]
[1759125314089,7.65,209.2,209.16,5.35608507]
[1759125314598,7.65,209.2,209.17,7.65]
[1759125314892,7.65,209.2,209.16,5.35608507]
[1759125315190,7.65,209.2,209.17,7.65]
[1759125315390,11.9506,209.2,209.17,7.65]
[1759125315583,7.65,209.19,209.17,7.65]
[1759125315780,7.65,209.19,209.16,5.35608507]
[1759125316088,7.65,209.19,209.16,13.00608507]
[1759125316585,7.65,209.19,209.16,7.65]
[1759125316783,7.65,209.26,209.17,7.65]
[1759125316984,7.65,209.26,209.18,13.00608507]
[1759125317790,4.2997,209.24,209.18,6.75917833]
[1759125318293,4.2997,209.24,209.19,7.65]
[1759125318589,4.2997,209.24,209.18,6.75917833]
[1759125318889,11.9497,209.24,209.18,6.75917833]
[1759125319084,11.9497,209.24,209.19,7.65]
[1759125319685,4.2997,209.24,209.18,14.40917833]
[1759125319886,7.65,209.22,209.18,6.75917833]
[1759125320196,7.65,209.22,209.19,7.65]
[1759125320704,7.65,209.22,209.18,6.75917833]
[1759125320998,7.65,209.22,209.19,7.65]
[1759125321190,11.9501,209.22,209.19,7.65]
[1759125323399,7.65,209.21,209.19,7.65]
[1759125323890,7.76,209.21,209.18,7.36]
[1759125325595,7.76,209.21,209.17,5.35608507]
[1759125325796,7.76,209.21,209.18,7.36]
[1759125326296,7.76,209.21,209.17,5.35608507]
[1759125326895,4.3001,209.22,209.17,5.35608507]
[1759125327096,4.3001,209.22,209.19,7.36]
[1759125327291,4.3001,209.22,209.18,5.35608507]
[1759125327492,4.2996,209.24,209.19,7.36]
[1759125327696,4.2996,209.24,209.18,5.35608507]
[1759125327697,12.0596,209.24,209.18,5.35608507]
[1759125327898,12.0596,209.24,209.19,7.36]
[1759125328097,4.2996,209.24,209.18,5.35608507]
[1759125328302,12.0596,209.24,209.18,12.71608507]
[1759125329098,4.2999,209.23,209.18,12.71608507]
[1759125329296,12.0599,209.23,209.17,5.35608507]
[1759125330105,12.0599,209.23,209.17,12.71608507]
[1759125331007,12.0599,209.23,209.19,7.36]
[1759125331008,7.76,209.22,209.19,7.36]
[1759125331407,12.0601,209.22,209.18,5.35608507]
[1759125331602,7.76,209.21,209.17,5.35608507]
[1759125331815,4.3001,209.22,209.17,12.71608507]
[1759125332109,7.76,209.21,209.17,12.71608507]
[1759125332704,7.76,209.21,209.18,7.36]
[1759125333613,12.0601,209.22,209.17,5.35608507]
[1759125333808,4.3001,209.22,209.18,7.36]
[1759125334013,12.0601,209.22,209.18,7.36]
[1759125334210,12.0601,209.22,209.17,5.35608507]
[1759125334409,7.76,209.21,209.17,5.35608507]
[1759125334605,4.3001,209.22,209.17,5.35608507]
[1759125334809,4.3001,209.22,209.17,12.71608507]
[1759125335013,7.76,209.21,209.17,12.71608507]
[1759125336315,12.0603,209.21,209.17,12.71608507]
[1759125336616,7.76,209.2,209.17,7.36]
[1759125339613,7.76,209.2,209.16,5.35608507]
[1759125339915,7.76,209.23,209.15,5.35608507]
[1759125340108,7.76,209.17,209.14,12.71608507]
[1759125340312,7.76,209.21,209.14,5.35608507]
[1759125341111,4.3014,209.16,209.14,5.35608507]
[1759125341309,7.76,209.17,209.12,5.35608507]
[1759125341504,7.76,209.17,209.11,5.35608507]
[1759125342410,7.76,209.17,209.1,5.35608507]
[1759125342617,4.3016,209.14,209.1,5.35608507]
[1759125342816,7.76,209.13,209.1,5.35608507]
[1759125343012,4.3016,209.14,209.1,5.35608507]
[1759125343421,4.3016,209.14,209.09,12.71608507]
[1759125343711,7.76,209.13,209.1,12.71608507]
[1759125344808,12.0611,209.17,209.1,12.71608507]
[1759125345412,12.0611,209.17,209.1,5.35608507]
[1759125345612,12.0611,209.17,209.11,7.36]
[1759125345815,4.3014,209.16,209.11,7.36]
[1759125346009,7.76,209.15,209.11,7.36]
[1759125346215,2.19244012,209.19,209.1,5.35608507]
[1759125346418,7.76,209.18,209.09,5.35608507]
[1759125347521,7.76,209.18,209.08,5.35608507]
[1759125347722,7.76,209.14,209.08,5.35608507]
[1759125348423,12.0618,209.14,209.08,5.35608507]
[1759125349421,12.0618,209.14,209.09,7.36]
[1759125349615,4.3018,209.14,209.09,5.35608507]
[1759125349814,4.3018,209.14,209.1,7.36]
[1759125350219,4.3018,209.14,209.09,5.35608507]
[1759125350414,4.3018,209.14,209.1,7.36]
[1759125350619,4.3018,209.14,209.09,5.35608507]
[1759125351427,4.3018,209.14,209.09,7.36]
[1759125351626,4.3018,209.14,209.08,5.35608507]
[1759125351817,4.3018,209.14,209.09,7.36]
[1759125352528,4.3018,209.14,209.08,5.35608507]
[1759125352918,4.3018,209.14,209.1,7.36]
[1759125353122,4.3018,209.14,209.09,5.35608507]
[1759125353325,12.0612,209.16,209.1,7.36]
[1759125356634,12.0208,209.18,209.1,7.36]
[1759125356934,12.0208,209.18,209.09,5.35608507]
[1759125356935,12.0208,209.18,209.11,7.27]
[1759125357834,7.72,209.22,209.11,7.27]
[1759125358027,7.72,209.22,209.15,7.27]
[1759125358835,4.3005,209.2,209.14,7.27]
[1759125359730,4.3005,209.2,209.13,5.35608507]
[1759125359731,7.72,209.18,209.11,190.68608507]
[1759125359932,7.72,209.18,209.11,12.62608507]
[1759125360131,4.3011,209.17,209.11,12.62608507]
[1759125360332,7.72,209.16,209.11,7.27]
[1759125360637,4.3011,209.17,209.11,7.27]
[1759125361136,7.72,209.16,209.11,7.27]
[1759125361537,4.3011,209.17,209.11,7.27]
[1759125361738,12.0211,209.17,209.11,7.27]
[1759125364840,12.0211,209.17,209.11,12.62608507]
[1759125366138,4.3011,209.17,209.12,7.27]
[1759125366439,4.3011,209.17,209.11,5.35608507]
[1759125366641,4.3011,209.17,209.12,7.27]
[1759125366939,4.3011,209.17,209.11,5.35608507]
[1759125366940,12.0211,209.17,209.11,5.35608507]
[1759125367535,12.0211,209.17,209.12,7.27]
[1759125367738,12.0211,209.17,209.11,5.35608507]
[1759125367939,12.0211,209.17,209.12,7.27]
[1759125368342,12.0211,209.17,209.11,5.35608507]
[1759125368644,4.3011,209.17,209.11,5.35608507]
[1759125368849,7.72,209.2,209.13,7.27]
[1759125368850,12.0204,209.2,209.13,7.27]
[1759125369445,4.3007,209.19,209.13,7.27]
[1759125370743,7.72,209.24,209.13,7.27]
[1759125370946,7.72,209.24,209.14,5.35608507]
[1759125371245,7.72,209.24,209.15,7.27]
[1759125372042,12.0196,209.24,209.16,7.27]
[1759125373640,7.48,209.22,209.16,7.27]
[1759125374347,11.7801,209.22,209.16,7.27]
[1759125382455,4.2996,209.24,209.16,7.27]
[1759125382946,7.48,209.23,209.16,7.27]
[1759125383853,7.48,209.23,209.16,12.62608507]
[1759125384254,7.48,209.23,209.16,14.02926105]
[1759125384454,11.7799,209.23,209.16,14.02926105]
[1759125384856,11.7799,209.23,209.16,8.67317598]
[1759125386057,7.48,209.23,209.16,7.27]
[1759125386356,7.73,209.21,209.13,17.26788507]
[1759125386754,4.3005,209.2,209.13,17.26788507]
[1759125386959,12.0305,209.2,209.13,17.26788507]
[1759125387358,12.0305,209.2,209.13,7.61]
[1759125387558,4.3007,209.19,209.13,7.61]
[1759125388660,7.73,209.18,209.13,7.61]
[1759125388862,7.73,209.18,209.12,6.75926105]
[1759125389155,4.3007,209.19,209.13,5.35608507]
[1759125389354,4.3007,209.19,209.13,12.96608507]
[1759125389957,7.73,209.18,209.13,5.35608507]
[1759125390158,7.73,209.18,209.12,14.36926105]
[1759125394264,12.0309,209.18,209.12,14.36926105]
[1759125397164,7.73,209.15,209.13,7.61]
[1759125397664,12.0312,209.16,209.13,7.61]
[1759125397860,4.3008,209.18,209.13,7.61]
[1759125398066,4.3008,209.18,209.14,7.61]
[1759125398264,4.3003,209.21,209.14,7.61]
[1759125398465,4.3003,209.21,209.16,7.61]
[1759125398665,1.40317598,209.25,209.16,7.61]
[1759125398860,9.13317598,209.25,209.18,7.61]
[1759125399063,4.3001,209.22,209.18,7.61]
[1759125399266,7.73,209.21,209.18,7.61]
[1759125400067,4.3001,209.22,209.16,7.61]
[1759125400270,12.0296,209.24,209.18,7.61]
[1759125406071,12.0296,209.24,209.18,12.96608507]
[1759125406772,7.73,209.24,209.18,12.96608507]
[1759125407071,1.40317598,209.25,209.18,12.96608507]
[1759125407368,1.40317598,209.25,209.19,5.35608507]
[1759125407566,7.73,209.24,209.19,5.35608507]
[1759125408166,1.40317598,209.25,209.19,5.35608507]
[1759125408674,7.73,209.21,209.19,5.35608507]
[1759125409576,4.3001,209.22,209.19,5.35608507]
[1759125409877,7.73,209.2,209.19,5.35608507]
[1759125410069,4.3003,209.21,209.18,5.35608507]
[1759125410466,7.73,209.2,209.18,5.35608507]